{"text_format":"3","workbook":"xlsx","n_sheets":3,"sheets":["Beholdning i skifteattest","Skifteattestaktiva","Skifteattestforpliktelser"],"not_rendered":{"defined_names":1},"read":"whole","date_system":"1900"}

{"sheet":"Beholdning i skifteattest","index":0,"n_rows":45,"n_cols":35,"rows_kept":45,"merged":[[0,1,0,30],[0,31,0,39],[1,1,5,39],[6,1,6,6],[6,7,6,39],[7,1,7,6],[7,7,7,39],[9,1,9,6],[9,7,9,39],[10,1,10,6],[10,7,10,39],[11,1,11,6],[11,7,11,20],[11,21,11,26],[11,27,11,30],[11,31,11,33],[11,34,11,39],[12,1,12,6],[12,7,12,20],[12,21,12,26],[13,1,13,6],[13,7,13,20],[13,21,13,26],[14,1,14,6],[14,7,14,20],[14,21,14,26],[15,1,15,6],[17,1,17,39],[18,1,18,6],[18,7,18,12],[18,13,18,15],[18,16,18,18],[18,19,18,26],[18,27,18,31],[18,32,18,39],[19,1,19,6],[19,7,19,12],[19,13,19,15],[19,16,19,18],[19,19,19,26],[19,27,19,31],[19,32,19,39],[20,1,20,6],[20,7,20,12],[20,13,20,15],[20,16,20,18],[20,19,20,26],[20,27,20,31],[20,32,20,39],[21,1,21,6],[21,7,21,12],[21,13,21,15],[21,16,21,18],[21,19,21,26],[21,27,21,31],[21,32,21,39],[22,1,22,6],[22,7,22,12],[22,13,22,15],[22,16,22,18],[22,19,22,26],[22,27,22,31],[22,32,22,39],[23,1,23,6],[23,7,23,12],[23,13,23,15],[23,16,23,18],[23,19,23,26],[23,27,23,31],[23,32,23,39],[25,1,25,39],[26,1,26,6],[26,7,26,12],[26,13,26,18],[26,19,26,26],[26,27,26,31],[26,32,26,39],[27,1,27,6],[27,7,27,12],[27,13,27,18],[27,19,27,26],[27,27,27,31],[27,32,27,39],[28,1,28,6],[28,7,28,12],[28,13,28,18],[28,19,28,26],[28,27,28,31],[28,32,28,39],[29,1,29,6],[29,7,29,12],[29,13,29,18],[29,19,29,26],[29,27,29,31],[29,32,29,39],[30,1,30,6],[30,7,30,12],[30,13,30,18],[30,19,30,26],[30,27,30,31],[30,32,30,39],[31,1,31,6],[31,7,31,12],[31,13,31,18],[31,19,31,26],[31,27,31,31],[31,32,31,39],[33,1,33,12],[33,14,33,39],[34,1,34,12],[34,14,34,21],[34,22,34,25],[34,26,34,33],[34,34,34,39],[35,2,35,12],[35,14,35,21],[35,22,35,25],[35,26,35,33],[35,34,35,39],[36,2,36,12],[36,14,36,21],[36,22,36,25],[36,26,36,33],[36,34,36,39],[37,2,37,12],[37,14,37,21],[37,22,37,25],[37,26,37,33],[37,34,37,39],[38,2,38,12],[38,14,38,21],[38,22,38,25],[38,26,38,33],[38,34,38,39],[39,2,39,12],[39,14,39,21],[39,22,39,25],[39,26,39,33],[39,34,39,39],[40,2,40,12],[40,14,40,21],[40,22,40,25],[40,26,40,33],[40,34,40,39],[41,2,41,12],[41,14,41,21],[41,22,41,25],[41,26,41,33],[41,34,41,39],[42,2,42,12],[42,14,42,21],[42,22,42,25],[42,26,42,33],[42,34,42,38],[43,2,43,12],[43,14,43,21],[43,22,43,25],[43,26,43,33],[43,34,43,39],[44,2,44,12],[44,14,44,21],[44,22,44,25],[44,26,44,33],[44,34,44,39]]}
[]
[null,"Beholdning i skiftet"]
[]
[]
[]
[]
[null,"Navn på testamentfullbyrder(e)",{"$nulls":5},"Allan Mattsson"]
[null,"Kontaktinformasjon",{"$nulls":5},"Granveien 123, 4567 Furuberg"]
[]
[null,"Avdødes navn",{"$nulls":5},"August Bergquist"]
[null,"Gateadresse",{"$nulls":5},"Granveien 67"]
[null,"Poststed",{"$nulls":5},"Furuberg",{"$nulls":13},"Delstat",{"$nulls":5},"NY",{"$nulls":3},"Postnummer",null,null,98052]
[null,"Pers.nr.",{"$nulls":5},"AAA-GG-SSSS",{"$nulls":13},"Stilling",{"$nulls":5},"Tannlege"]
[null,"Fødselsdato",{"$nulls":5},"1965-12-08",{"$nulls":13},"Fødested",{"$nulls":5},"NY"]
[null,"Dødsdato",{"$nulls":5},{"$f":"TODAY()-3","v":"2022-05-09"},{"$nulls":13},"Dødssted",{"$nulls":5},"NY"]
[null,"Mer informasjon"]
[]
[null,"  Ektefelle, barn og andre avhengige"]
[null,"Navn",{"$nulls":5},"Relasjon",{"$nulls":5},"Avhengig",null,null,"Alder",null,null,"Adresse",{"$nulls":7},"Telefonnummer",{"$nulls":4},"E-postadresse"]
[null,"Mirjam Nilsson",{"$nulls":5},"Personlig representant",{"$nulls":5},"Nei",null,null,30]
[null,"Victoria Lindqvist",{"$nulls":5},"Ektefelle",{"$nulls":5},"Ja",null,null,35]
[null,"Alexander Martensson",{"$nulls":5},"Barn",{"$nulls":5},"Ja",null,null,12]
[]
[]
[]
[null,"Profesjonelle rådgivere"]
[null,"Rådgivertype",{"$nulls":5},"Kontaktperson",{"$nulls":5},"Firma",{"$nulls":5},"Adresse",{"$nulls":7},"Telefonnummer",{"$nulls":4},"E-postadresse"]
[null,"Regnskapsfører"]
[null,"Advokat/notar"]
[null,"Annet"]
[]
[]
[]
[null,"  Sjekkliste for skiftet",{"$nulls":12},"  Beholdninger i skiftet"]
[null,"    Sjekklisteelementer",{"$nulls":12},"Aktiva i skiftet",{"$nulls":7},"Verdi (Kr)",{"$nulls":3},"Forpliktelser i skiftet",{"$nulls":7},"Verdi (Kr)"]
[null,"✔","Siste vilje, testament eller andre dokumenter",{"$nulls":11},{"$f":"Skifteattestaktiva!B12","v":"Bankkontoer"},{"$nulls":7},{"$f":"Skifteattestaktiva!G20","v":{"v":0,"d":"kr 0.00"}},{"$nulls":3},{"$f":"Skifteattestforpliktelser!B11","v":"Boliglån"},{"$nulls":7},{"$f":"Skifteattestforpliktelser!G18","v":{"v":0,"d":"kr 0.00"}}]
[null,"✔","Leieavtale og nøkler for bankboks",{"$nulls":11},{"$f":"Skifteattestaktiva!B22","v":"Personlige investeringer"},{"$nulls":7},{"$f":"Skifteattestaktiva!G30","v":{"v":0,"d":"kr 0.00"}},{"$nulls":3},{"$f":"Skifteattestforpliktelser!B21","v":"Personlige lån og kassekreditt"},{"$nulls":7},{"$f":"Skifteattestforpliktelser!G28","v":{"v":0,"d":"kr 0.00"}}]
[null,"✖","Passord for datamaskiner og nettkontoer",{"$nulls":11},{"$f":"Skifteattestaktiva!B32","v":"Forretningsinteresser"},{"$nulls":7},{"$f":"Skifteattestaktiva!G40","v":{"v":0,"d":"kr 0.00"}},{"$nulls":3},{"$f":"Skifteattestforpliktelser!B31","v":"Forretningsinteresser"},{"$nulls":7},{"$f":"Skifteattestforpliktelser!G38","v":{"v":0,"d":"kr 0.00"}}]
[null,"✔","Avtaler om livsdisposisjoner",{"$nulls":11},{"$f":"Skifteattestaktiva!B42","v":"Eiendom"},{"$nulls":7},{"$f":"Skifteattestaktiva!G50","v":{"v":0,"d":"kr 0.00"}},{"$nulls":3},{"$f":"Skifteattestforpliktelser!B41","v":"Kredittkort"},{"$nulls":7},{"$f":"Skifteattestforpliktelser!G48","v":{"v":0,"d":"kr 0.00"}}]
[null,"✔","Livsforsikrings-, helse/uhells- og forsikringspoliser",{"$nulls":11},{"$f":"Skifteattestaktiva!B52","v":"Pensjonsordninger"},{"$nulls":7},{"$f":"Skifteattestaktiva!G60","v":{"v":0,"d":"kr 0.00"}},{"$nulls":3},{"$f":"Skifteattestforpliktelser!B51","v":"Andre forpliktelser"},{"$nulls":7},{"$f":"Skifteattestforpliktelser!G58","v":{"v":0,"d":"kr 0.00"}}]
[null,"✔","Bankutskrifter",{"$nulls":11},{"$f":"Skifteattestaktiva!B62","v":"Forsikring"},{"$nulls":7},{"$f":"Skifteattestaktiva!G70","v":{"v":0,"d":"kr 0.00"}}]
[null,"✔","Skattemelding for de siste tre årene",{"$nulls":11},{"$f":"Skifteattestaktiva!B72","v":"Private lån og boliglån"},{"$nulls":7},{"$f":"Skifteattestaktiva!G80","v":{"v":0,"d":"kr 0.00"}}]
[null,"✔","Fødsels- og dødsattester",{"$nulls":11},{"$f":"Skifteattestaktiva!B82","v":"Interesse i andre eiendommer og forvaltningsformuer"},{"$nulls":7},{"$f":"Skifteattestaktiva!G90","v":{"v":0,"d":"kr 0.00"}}]
[null,"✖","Skjøter, boliglån og leieavtaler",{"$nulls":11},{"$f":"Skifteattestaktiva!B92","v":"Personlige effekter og andre aktiva"},{"$nulls":7},{"$f":"Skifteattestaktiva!G100","v":{"v":0,"d":"kr 0.00"}}]
[null,"☐","Ubetalte regninger og notater",{"$nulls":11},"Totale aktiva",{"$nulls":7},{"$f":"Skifteattestaktiva!G10","v":{"v":0,"d":"kr 0.00"}},{"$nulls":3},"Forpliktelser totalt",{"$nulls":7},{"$f":"SUM(AI36:AN44)","v":{"v":0,"d":"kr 0.00"}}]

{"sheet":"Skifteattestaktiva","index":1,"n_rows":100,"n_cols":8,"rows_kept":100,"merged":[[0,1,0,7],[1,1,5,7],[6,1,7,7],[11,1,11,7],[12,1,12,7],[21,1,21,7],[22,1,22,7],[31,1,31,7],[32,1,32,7],[41,1,41,7],[42,1,42,7],[51,1,51,7],[52,1,52,7],[61,1,61,7],[62,1,62,7],[71,1,71,7],[72,1,72,7],[81,1,81,7],[82,1,82,7],[91,1,91,7],[92,1,92,7]]}
[]
[null,"Aktiva i skiftet"]
[]
[]
[]
[]
[null,"Bruk dette regnearket til å opprette en oversikt over aktiva i skiftet. Du må bestemme markedsverdien for hver eiendomsaktiva på dødsdatoen. Se gjennom alle poster, inkludert regnskap, forsikringspoliser og skattemeldinger for å få markedsverdier. Du må kanskje også få en vurdering av personlige gjenstander (det vil si kunstverk, samlinger, antikviteter osv.). Husk også å inkludere eventuelle utenlandske aktiva i innboet, for eksempel eiendom, verdipapirer eller utenlandske forretningsinteresser. Du ønsker kanskje å få profesjonell hjelp til å få en nøyaktig markedsverdi for utenlandske aktiva."]
[]
[]
[null,"Totale aktiva",{"$nulls":4},{"$f":"tblBankKontoer[[#Totals],[Saldo ]]+tblPersonligeInvesteringer[[#Totals],[Markedsverdi]]+tblForretningsinteresser[[#Totals],[Verdi ]]+tblEiendom[[#Totals],[Markedspris]]+tblPensjonssparing[[#Totals],[Verdi ]]+tblFosikring[[#Totals],[Kontantverdi ]]+tblBoliglån[[#Totals],[Skyldig beløp ]]+tblForvaltningsformuer[[#Totals],[Fordelingsbeløp]]+tblAndreAktiva[[#Totals],[Verdi ]]","v":{"v":0,"d":"kr 0.00"}}]
[]
[null,"Bankkontoer"]
[null,"Før opp alle bankkontoer, inkludert kontanter, reisesjekker, pengebestillinger og kontoer med kommersielle banker, sparebanker, kredittorganisasjoner osv. Inkluder alle navnene som er oppført på kontoen, og den faktiske kontantverdien som refererer til det nøyaktige dollar- og vekslebeløpet på dødstidspunktet."]
[null,"Finansinstitusjon ","Adresse","Telefon","Kontonummer","Kontotype","Saldo ","Notater"]
[]
[]
[]
[]
[]
[null,"Totalt",{"$nulls":4},{"$f":"SUBTOTAL(109,tblBankKontoer[[Saldo ]])","v":{"v":0,"d":"kr 0.00"}}]
[]
[null,"Personlige investeringer"]
[null,"Før opp brukskontoer, marginkontoer, skattefrie sparekontoer, registrert pensjonssparing, registrert pensjonsinntekt, låst pensjonsinntekt, låst pensjonssparing, livfond, foreskrevne pensjonsinntekter, registrert utdanningssparing, livrenter osv."]
[null,"Firma","Adresse","Telefonnummer","Kontonummer","Mottaker","Markedsverdi","Notater"]
[]
[]
[]
[]
[]
[null,"Totalt",{"$nulls":4},{"$f":"SUBTOTAL(109,tblPersonligeInvesteringer[Markedsverdi])","v":{"v":0,"d":"kr 0.00"}}]
[]
[null,"Forretningsinteresser"]
[null,"Før opp alle forretningsinteresser, inkludert enkeltpersonforetak, profesjonelle praksiser, selskaper, partnerskap, selskaper og partnerskap med begrenset ansvar, felleskontrollerte virksomheter og andre ikke-børsnoterte forretningsenheter. "]
[null,"Bedriftsnavn","Adresse","Telefonnummer","Kontakt","Type","Verdi ","Notater"]
[]
[]
[]
[]
[]
[null,"Totalt",{"$nulls":4},{"$f":"SUBTOTAL(109,tblForretningsinteresser[[Verdi ]])","v":{"v":0,"d":"kr 0.00"}}]
[]
[null,"Eiendom"]
[null,"Før opp all eiendom der avdøde og/eller avdødes gjenlevende ektefelle/partner er eier, felles eier eller har en interesse på noen måte, inkludert fritidsboliger og timeshare. Få tak i kopier av skjøtene. Beskriv eiendommen med fysisk adresse. Før opp en rimelig markedsverdi av eiendommen, basert på den nyeste takstvurderingen."]
[null,"Adresse","Skjøte holdes av","Telefon","Kontakt","Innkjøpspris","Markedspris","Notater"]
[]
[]
[]
[]
[]
[null,"Totalt",{"$nulls":3},{"$f":"SUBTOTAL(109,tblEiendom[Innkjøpspris])","v":{"v":0,"d":"kr 0.00"}},{"$f":"SUBTOTAL(109,tblEiendom[Markedspris])","v":{"v":0,"d":"kr 0.00"}}]
[]
[null,"Pensjonsordninger"]
[null,"Før opp definerte fordeler, pengekjøp eller definerte bidrag, DPSP eller gruppe-RRSP osv."]
[null,"Firma","Telefon","Type ordning","Mottaker","E-postadresse","Verdi ","Notater"]
[]
[]
[]
[]
[]
[null,"Totalt",{"$nulls":4},{"$f":"SUBTOTAL(109,tblPensjonssparing[[Verdi ]])","v":{"v":0,"d":"kr 0.00"}}]
[]
[null,"Forsikring"]
[null,"Inkluder forvaltningsformuer, livsforsikring med navngitte mottakere og investeringskontoer som overføres ved dødsfall som ikke-skiftemidler. Hvis retten spør om disse aktivaene, kan testamentfullbyrderen enkelt referere til listen over ikke-skiftemidler og forklare fraværet fra skiftebeholdningen."]
[null,"Utsteder","Polisenummer","Telefon","Mottaker","Pålydende verdi ","Kontantverdi ","Notater"]
[]
[]
[]
[]
[]
[null,"Totalt",{"$nulls":3},{"$f":"SUBTOTAL(109,tblFosikring[[Pålydende verdi ]])","v":{"v":0,"d":"kr 0.00"}},{"$f":"SUBTOTAL(109,tblFosikring[[Kontantverdi ]])","v":{"v":0,"d":"kr 0.00"}}]
[]
[null,"Private lån og boliglån"]
[null,"Før opp private lån og boliglån der den avdøde personen var utlåner."]
[null,"Navn på låntaker","Adresse","Telefonnummer","Type","Opprinnelig beløp","Skyldig beløp ","Notater"]
[]
[]
[]
[]
[]
[null,"Totalt",{"$nulls":3},{"$f":"SUBTOTAL(109,tblBoliglån[Opprinnelig beløp])","v":{"v":0,"d":"kr 0.00"}},{"$f":"SUBTOTAL(109,tblBoliglån[[Skyldig beløp ]])","v":{"v":0,"d":"kr 0.00"}}]
[]
[null,"Interesse i andre eiendommer og forvaltningsformuer"]
[null,"Før opp aktiva som er registrert i den avdøde personens navn, som holdes på vegne av andre (f.eks. aktiva som oppbevares av den avdøde personen som forvalter, eller aktiva som holdes under fullmakt)."]
[null,"Navn på eiendom/forvaltningsformue","Navn på testamentfullbyrder/forvalter","Telefonnummer","Adresse","E-postadresse","Fordelingsbeløp","Notater"]
[]
[]
[]
[]
[]
[null,"Totalt",{"$nulls":4},{"$f":"SUBTOTAL(109,tblForvaltningsformuer[Fordelingsbeløp])","v":{"v":0,"d":"kr 0.00"}}]
[]
[null,"Personlige effekter og andre aktiva"]
[null,"Før opp alle personlige gjenstander, for eksempel biler, gull, kunst, antikviteter, møbler. Inkluder gjenstander som kan ha blitt oppbevart i en bankboks eller sikker oppbevaring."]
[null,"Beskrivelse av gjenstand","Sted","Telefon","Kontakt","Mottaker","Verdi ","Notater"]
[]
[]
[]
[]
[]
[null,"Totalt",{"$nulls":4},{"$f":"SUBTOTAL(109,tblAndreAktiva[[Verdi ]])","v":{"v":0,"d":"kr 0.00"}}]

{"sheet":"Skifteattestforpliktelser","index":2,"n_rows":58,"n_cols":8,"rows_kept":58,"merged":[[0,1,0,7],[1,1,5,7],[6,1,6,7],[10,1,10,7],[20,1,20,7],[30,1,30,7],[40,1,40,7],[50,1,50,7]]}
[]
[null,"Forpliktelser i skiftet"]
[]
[]
[]
[]
[null,"Bruk dette regnearket til å registrere detaljene for boets forpliktelser, både innenlands og utenlands. Du trenger en taksering av hver forpliktelse per dødsdatoen."]
[]
[null,"Totale aktiva",{"$nulls":4},{"$f":"SUM(G18,G28,G38,G48,G58)","v":{"v":0,"d":"kr 0.00"}}]
[]
[null,"Boliglån"]
[null,"Finansinstitusjon ","Adresse","Telefon","Skjøte holdes av","Kontonummer","Saldo ","Notater"]
[]
[]
[]
[]
[]
[null,"Totalt",{"$nulls":4},{"$f":"SUBTOTAL(109,tblBankKontoer2[[Saldo ]])","v":{"v":0,"d":"kr 0.00"}}]
[]
[]
[null,"Personlige lån og kassekreditt"]
[null,"Finansinstitusjon","Adresse","Telefonnummer"," Kontonummer","Type","Saldo ","Notater"]
[]
[]
[]
[]
[]
[null,"Totalt",{"$nulls":4},{"$f":"SUBTOTAL(109,tblPersonligeInvesteringer3[[Saldo ]])","v":{"v":0,"d":"kr 0.00"}}]
[]
[]
[null,"Forretningsinteresser"]
[null,"Bedriftsnavn","Adresse"," Telefonnummer"," Kontakt","Type","Verdi ","Notater"]
[]
[]
[]
[]
[]
[null,"Totalt",{"$nulls":4},{"$f":"SUBTOTAL(109,tblForretningssinteresser4[[Verdi ]])","v":{"v":0,"d":"kr 0.00"}}]
[]
[]
[null,"Kredittkort"]
[null,"Kredittkortfirma","Firmaadresse","Telefonnummer","Kortnummer","Utløpsdato ","Saldo ","Notater"]
[]
[]
[]
[]
[]
[null,"Totalt",{"$nulls":4},{"$f":"SUBTOTAL(109,tblEiendom5[[Saldo ]])","v":{"v":0,"d":"kr 0.00"}}]
[]
[]
[null,"Andre forpliktelser"]
[null,"Beskrivelse av gjenstand","Sted","Telefon","Kontakt","Mottaker","Verdi ","Notater"]
[]
[]
[]
[]
[]
[null,"Totalt",{"$nulls":4},{"$f":"SUBTOTAL(109,tblPensjonssparing6[[Verdi ]])","v":{"v":0,"d":"kr 0.00"}}]